fUST/lending_fUST_20250817
["ID","MTS","AMOUNT","RATE_DAILY","PERIOD"]
[379724953,1755385849206,-480.0,0.00021228,2]
[379724954,1755385849215,-480.0,0.00021228,2]
[379724955,1755385849225,-151.0,0.00021228,2]
[379724956,1755385849235,-480.0,0.00021228,2]
[379724957,1755385849245,-480.0,0.00021228,2]
[379724958,1755385849255,-480.0,0.00021228,2]
[379724959,1755385849264,-531.38,0.00021228,2]
[379724960,1755385849274,-480.0,0.00021228,2]
[379724961,1755385849285,-480.0,0.00021228,2]
[379724962,1755385849294,-480.0,0.00021228,2]
[379724963,1755385849304,-659.75,0.00021228,2]
[379724964,1755385849314,-480.0,0.00021228,2]
[379724965,1755385849323,-151.0,0.00021228,2]
[379724966,1755385849332,-151.0,0.00021228,2]
[379724967,1755385849342,-151.0,0.00021228,2]
[379724968,1755385849352,-151.0,0.00021228,2]
[379724969,1755385849361,-151.0,0.00021228,2]
[379724970,1755385849371,-1030.58,0.00021228,2]
[379724971,1755385849381,-151.0,0.00021228,2]
[379724972,1755385849390,-151.0,0.00021228,2]
[379724973,1755385849401,-262.50774572,0.00021228,2]
[379724974,1755385849410,-413.61539641,0.00021228,2]
[379724975,1755385849420,-480.0,0.00021228,2]
[379724976,1755385849432,-460.0,0.00021228,2]
[379724977,1755385849443,-480.0,0.00021228,2]
[379724978,1755385849452,-480.0,0.00021228,2]
[379724979,1755385849462,-480.0,0.00021228,2]
[379724980,1755385849471,-151.0,0.00021229,2]
[379724981,1755385849481,-450.617997,0.00021229,2]
[379724982,1755385849491,-450.617997,0.00021229,2]
[379724983,1755385849500,-480.0,0.00021229,2]
[379724984,1755385849510,-7304.42,0.00021229,2]
[379724985,1755385849520,-333.5021091,0.00021229,2]
[379724986,1755385849529,-1497.46,0.00021229,2]
[379724987,1755385849539,-171.887011,0.00021229,2]
[379724988,1755385849548,-480.0,0.00021229,2]
[379724989,1755385849558,-171.887011,0.00021229,2]
[379724990,1755385849568,-480.0,0.00021229,2]
[379724991,1755385849578,-6130.76,0.00021229,2]
[379724992,1755385849588,-480.0,0.00021229,2]
[379724993,1755385849597,-905.9,0.00021229,2]
[379724994,1755385849607,-480.0,0.00021229,2]
[379724995,1755385849616,-852.22,0.00021229,2]
[379724996,1755385849625,-2204.7,0.00021229,2]
[379724997,1755385849635,-691.96,0.00021229,2]
[379724998,1755385849644,-723.896909,0.0002123,2]
[379724999,1755385849654,-480.0,0.0002123,2]
[379725000,1755385849663,-723.896909,0.0002123,2]
[379725001,1755385849672,-151.0,0.0002123,2]
[379725002,1755385849682,-480.0,0.0002123,2]
[379725003,1755385849691,-480.0,0.0002123,2]
[379725004,1755385849700,-480.0,0.0002123,2]
[379725005,1755385849710,-2389.76,0.0002123,2]
[379725006,1755385849719,-480.0,0.0002123,2]
[379725007,1755385849728,-151.0,0.00021232,2]
[379725008,1755385849738,-783.858986,0.00021232,2]
[379725009,1755385849747,-783.858986,0.00021232,2]
[379725010,1755385849756,-151.0,0.00021255,2]
[379725011,1755385849766,-500.0,0.00021255,2]
[379725012,1755385849777,-172.48783191,0.0002126,2]
[379725013,1755385849787,-161.99111265,0.0002126,2]
[379725014,1755385849796,-172.48783191,0.0002126,2]
[379725015,1755385849806,-600.0,0.00021303,2]
[379725016,1755385849815,-500.0,0.00021369,2]
[379725017,1755385849824,-168.0,0.00021391,2]
[379725018,1755385849834,-602.4,0.00021393,3]
[379725019,1755385849844,-1333.28,0.00021492,3]
[379725020,1755385849854,-666.64,0.00021492,3]
[379725021,1755385849864,-333.32,0.00021492,3]
[379725022,1755385849874,-551.09,0.00021499,2]
[379725023,1755385849883,-796.43,0.00021499,2]
[379725024,1755385849896,-607.23,0.00021499,2]
[379725025,1755385849906,-2081.38,0.00021499,2]
[379725026,1755385849915,-480.0,0.00021499,2]
[379725027,1755385849925,-480.0,0.000215,2]
[379725028,1755385849935,-151.0,0.000215,4]
[379725029,1755385849944,-150.0,0.000215,5]
[379725030,1755385849954,-480.0,0.000215,2]
[379725031,1755385849965,-480.0,0.000215,2]
[379725032,1755385849975,-810.36,0.000215,2]
[379725033,1755385849984,-480.0,0.000215,2]
[379725034,1755385849993,-1222.88,0.000215,2]
[379725035,1755385850003,-703.8,0.000215,2]
[379725036,1755385850012,-388.5842436,0.000215,2]
[379725037,1755385850022,-480.0,0.000215,2]
[379725038,1755385850032,-480.0,0.000215,2]
[379725039,1755385850042,-151.0,0.000215,2]
[379725040,1755385850052,-480.0,0.000215,2]
[379725041,1755385850062,-4377.32,0.000215,2]
[379725042,1755385850071,-536.46,0.000215,2]
[379725043,1755385850081,-693.04,0.000215,2]
[379725044,1755385850091,-636.54,0.000215,2]
[379725045,1755385850100,-480.0,0.000215,2]
[379725046,1755385850109,-480.0,0.000215,2]
[379725047,1755385850120,-480.0,0.000215,2]
[379725048,1755385850129,-721.78,0.000215,2]
[379725049,1755385850140,-629.73,0.000215,2]
[379725050,1755385850150,-480.0,0.000215,2]
[379725051,1755385850160,-151.0,0.000215,2]
[379725052,1755385850170,-480.0,0.000215,2]
[379725053,1755385850179,-480.0,0.000215,2]
[379725054,1755385850189,-1542.15,0.000215,2]
[379725055,1755385850199,-2226.67,0.000215,2]
[379725056,1755385850208,-480.0,0.000215,2]
[379725057,1755385850219,-770.9,0.000215,2]
[379725058,1755385850229,-796.54,0.000215,2]
[379725059,1755385850240,-480.0,0.000215,2]
[379725060,1755385850250,-565.34,0.000215,2]
[379725061,1755385850260,-1653.75,0.000215,2]
[379725062,1755385850271,-558.56,0.000215,2]
[379725063,1755385850280,-549.41,0.000215,2]
[379725064,1755385850290,-2621.34,0.000215,2]
[379725065,1755385850300,-480.0,0.000215,2]
[379725066,1755385850310,-480.0,0.000215,2]
[379725067,1755385850319,-480.0,0.000215,2]
[379725068,1755385850330,-753.82,0.000215,2]
[379725069,1755385850339,-480.0,0.000215,2]
[379725070,1755385850349,-671.58,0.000215,2]
[379725071,1755385850359,-480.0,0.000215,2]
[379725072,1755385850368,-480.0,0.000215,2]
[379725073,1755385850377,-938.46,0.000215,2]
[379725074,1755385850387,-778.72,0.000215,2]
[379725075,1755385850396,-151.0,0.000215,2]
[379725076,1755385850406,-814.12,0.000215,2]
[379725077,1755385850415,-654.55,0.000215,2]
[379725078,1755385850424,-1106.0,0.00021501,2]
[379725079,1755385850435,-450.617997,0.00021501,2]
[379725080,1755385850445,-450.617997,0.00021501,2]
[379725081,1755385850454,-923.72,0.00021501,2]
[379725082,1755385850464,-480.0,0.00021501,2]
[379725083,1755385850474,-480.0,0.00021501,2]
[379725084,1755385850483,-480.0,0.00021501,2]
[379725085,1755385850493,-1069.56,0.00021501,2]
[379725086,1755385850502,-151.0,0.00021501,2]
[379725087,1755385850512,-480.0,0.00021501,2]
[379725088,1755385850530,-483.02,0.00021501,2]
[379725089,1755385850540,-520.44,0.00021501,2]
[379725090,1755385850550,-709.55,0.00021501,2]
[379725091,1755385850559,-512.26,0.00021501,2]
[379725092,1755385850576,-171.887011,0.00021501,2]
[379725093,1755385850585,-171.887011,0.00021501,2]
[379725094,1755385850595,-1150.28,0.00021501,2]
[379725095,1755385850604,-151.0,0.00021501,2]
[379725096,1755385850614,-151.0,0.00021501,2]
[379725097,1755385850623,-480.0,0.00021501,2]
[379725098,1755385850633,-151.0,0.00021501,2]
[379725099,1755385850643,-151.0,0.00021501,2]
[379725100,1755385850654,-166.730196,0.00021501,2]
[379725101,1755385850664,-702.82,0.00021501,2]
[379725102,1755385850674,-151.0,0.00021501,2]
[379725103,1755385850684,-216.804971,0.00021501,2]
[379725104,1755385850693,-569.48148537,0.00021501,2]
[379725105,1755385850703,-1331.81,0.00021501,2]
[379725106,1755385850714,-635.95,0.00021501,2]
[379725107,1755385850724,-931.96,0.00021501,2]
[379725108,1755385850735,-504.06,0.00021501,2]
[379725109,1755385850752,-545.46,0.00021501,2]
[379725110,1755385850767,-2449.06,0.00021501,2]
[379725111,1755385850780,-893.39,0.00021501,2]
[379725112,1755385850789,-480.0,0.00021501,2]
[379725113,1755385850798,-590.25,0.00021501,2]
[379725114,1755385850808,-870.59,0.00021501,2]
[379725115,1755385850818,-480.0,0.00021501,2]
[379725116,1755385850828,-480.0,0.00021501,2]
[379725117,1755385850837,-782.26,0.00021501,2]
[379725118,1755385850847,-620.8,0.00021501,2]
[379725119,1755385850857,-7785.62,0.00021501,2]
[379725120,1755385850868,-784.78,0.00021501,2]
[379725121,1755385850877,-492.76,0.00021501,2]
[379725122,1755385850889,-151.0,0.00021502,2]
[379725123,1755385850898,-480.0,0.00021502,2]
[379725124,1755385850909,-499.41,0.00021502,2]
[379725125,1755385850918,-480.0,0.00021502,2]
[379725126,1755385850929,-557.62,0.00021502,2]
[379725127,1755385850938,-241.743492,0.00021502,2]
[379725128,1755385850948,-480.0,0.00021502,2]
[379725129,1755385850958,-480.0,0.00021502,2]
[379725130,1755385850968,-480.0,0.00021502,2]
[379725131,1755385850977,-480.0,0.00021502,2]
[379725132,1755385850986,-480.0,0.00021502,2]
[379725133,1755385851113,-480.0,0.00021502,2]
[379725134,1755385851150,-531.38,0.00021502,2]
[379725135,1755385851161,-480.0,0.00021502,2]
[379725136,1755385851170,-480.0,0.00021502,2]
[379725137,1755385851180,-480.0,0.00021502,2]
[379725138,1755385851190,-659.75,0.00021502,2]
[379725139,1755385851199,-480.0,0.00021502,2]
[379725140,1755385851208,-1030.58,0.00021502,2]
[379725141,1755385851217,-480.0,0.00021502,2]
[379725142,1755385851228,-480.0,0.00021502,2]
[379725143,1755385851237,-480.0,0.00021502,2]
[379725144,1755385851247,-480.0,0.00021502,2]
[379725145,1755385851257,-151.0,0.00021503,2]
[379725146,1755385851267,-151.0,0.00021503,2]
[379725147,1755385851276,-264.633897,0.00021503,2]
[379725148,1755385851286,-723.896909,0.00021503,2]
[379725149,1755385851295,-723.896909,0.00021503,2]
[379725150,1755385851305,-285.075608,0.00021503,2]
[379725151,1755385851315,-480.0,0.00021503,2]
[379725152,1755385851325,-7304.42,0.00021503,2]
[379725153,1755385851334,-1497.46,0.00021503,2]
[379725154,1755385851344,-480.0,0.00021503,2]
[379725155,1755385851354,-480.0,0.00021503,2]
[379725156,1755385851363,-6130.76,0.00021503,2]
[379725157,1755385851372,-151.0,0.00021503,2]
[379725158,1755385851382,-480.0,0.00021503,2]
[379725159,1755385851391,-279.69809,0.00021503,2]
[379725160,1755385851401,-905.9,0.00021503,2]
[379725161,1755385851410,-480.0,0.00021503,2]
[379725162,1755385851420,-852.22,0.00021503,2]
[379725163,1755385851429,-2204.7,0.00021503,2]
[379725164,1755385851438,-691.96,0.00021503,2]
[379725165,1755385851448,-151.0,0.00021503,2]
[379725166,1755385851458,-480.0,0.00021504,2]
[379725167,1755385851467,-480.0,0.00021504,2]
[379725168,1755385851477,-480.0,0.00021504,2]
[379725169,1755385851487,-151.0,0.00021504,2]
[379725170,1755385851496,-480.0,0.00021504,2]
[379725171,1755385851505,-2389.76,0.00021504,2]
[379725172,1755385851515,-480.0,0.00021504,2]
[379725173,1755385851525,-1000.0,0.00021521,2]
[379725174,1755385851535,-222.15383929,0.00021521,2]
[379725175,1755385851544,-1000.0,0.00021521,2]
[379725176,1755385851554,-1000.0,0.00021521,2]
[379725177,1755385851564,-1000.0,0.00021521,2]
[379725178,1755385851573,-1000.0,0.00021521,2]
[379725179,1755385851583,-1000.0,0.00021521,2]
[379725180,1755385851592,-1000.0,0.00021521,2]
[379725181,1755385851601,-1000.0,0.00021521,2]
[379725182,1755385851611,-1000.0,0.00021521,2]
[379725183,1755385851620,-450.617997,0.00021521,2]
[379725184,1755385851630,-450.617997,0.00021521,2]
[379725185,1755385851639,-151.0,0.00021521,2]
[379725186,1755385851648,-171.887011,0.00021521,2]
[379725187,1755385851658,-171.887011,0.00021521,2]
[379725188,1755385851668,-151.0,0.00021521,2]
[379725189,1755385851678,-233.723184,0.00021521,2]
[379725190,1755385851688,-151.0,0.00021521,2]
[379725191,1755385851698,-151.0,0.00021521,2]
[379725192,1755385851708,-600.0,0.00021525,2]
[379725193,1755385851718,-151.0,0.00021529,2]
[379725194,1755385851728,-500.0,0.00021529,2]
[379725195,1755385851740,-315.233504,0.00021573,2]
[379725196,1755385851750,-1260.93401602,0.00021573,2]
[379725197,1755385851759,-364.25046561,0.00021573,2]
[379725198,1755385851770,-2837.10153604,0.00021573,2]
[379725199,1755385851779,-5043.73606407,0.00021573,2]
[379725200,1755385851789,-1457.00186244,0.00021573,2]
[379725201,1755385851799,-7872.95676251,0.00021573,2]
[379725202,1755385851808,-3274.97593631,0.00021573,2]
[379725203,1755385851818,-723.896909,0.00021586,2]
[379725204,1755385851828,-723.896909,0.00021586,2]
[379725205,1755385851838,-602.4,0.00021596,3]
[379725206,1755385851848,-151.0,0.000216,4]
[379725207,1755385851858,-151.0,0.000216,3]
[379725208,1755385851868,-1262.17335192,0.00021676,2]
[379725209,1755385851878,-9689.28862477,0.00021686,2]
[379725210,1755385851890,-260.0,0.00021695,2]
[379725211,1755385851901,-151.0,0.000217,3]
[379725212,1755385851911,-783.858986,0.000217,2]
[379725213,1755385851922,-783.858986,0.000217,2]
[379725214,1755385851932,-280.594806,0.000217,4]
[379725215,1755385851941,-852.03728361,0.00021747,2]
[379725216,1755385851951,-551.09,0.00021773,2]
[379725217,1755385851961,-796.43,0.00021773,2]
[379725218,1755385851972,-607.23,0.00021773,2]
[379725219,1755385851982,-2081.38,0.00021773,2]
[379725220,1755385851991,-480.0,0.00021773,2]
[379725221,1755385852001,-480.0,0.00021774,2]
[379725222,1755385852011,-480.0,0.00021774,2]
[379725223,1755385852020,-480.0,0.00021774,2]
[379725224,1755385852030,-810.36,0.00021774,2]
[379725225,1755385852040,-480.0,0.00021774,2]
[379725226,1755385852049,-1222.88,0.00021774,2]
[379725227,1755385852059,-703.8,0.00021774,2]
[379725228,1755385852069,-480.0,0.00021774,2]
[379725229,1755385852080,-480.0,0.00021774,2]
[379725230,1755385852090,-151.0,0.00021774,2]
[379725231,1755385852100,-480.0,0.00021774,2]
[379725232,1755385852110,-4377.32,0.00021774,2]
[379725233,1755385852119,-536.46,0.00021774,2]
[379725234,1755385852129,-693.04,0.00021774,2]
[379725235,1755385852139,-636.54,0.00021774,2]
[379725236,1755385852148,-480.0,0.00021774,2]
[379725237,1755385852158,-361.75488113,0.00021774,2]
[379725238,1755385852168,-480.0,0.00021774,2]
[379725239,1755385852178,-721.78,0.00021774,2]
[379725240,1755385852187,-629.73,0.00021774,2]
[379725241,1755385852197,-480.0,0.00021774,2]
[379725242,1755385852207,-480.0,0.00021774,2]
[379725243,1755385852216,-480.0,0.00021774,2]
[379725244,1755385852226,-1542.15,0.00021774,2]
[379725245,1755385852236,-2226.67,0.00021774,2]
[379725246,1755385852246,-480.0,0.00021774,2]
[379725247,1755385852256,-770.9,0.00021774,2]
[379725248,1755385852266,-796.54,0.00021774,2]
[379725249,1755385852275,-480.0,0.00021774,2]
[379725250,1755385852285,-336.32012151,0.00021774,2]
[379725251,1755385852563,-500.0,0.00020973,2]
[379725252,1755385852574,-151.0,0.00021227,2]
[379725253,1755385852584,-480.0,0.000215,2]
[379725254,1755385852593,-1000.0,0.00021521,2]
[379725255,1755385852603,-229.01987849,0.00021774,2]
[379725256,1755385852612,-5.38012151,0.00021774,2]
[379725257,1755385852711,-434.1,0.0002013,2]
[379725258,1755385852836,-480.0,0.00020129,2]
[379725259,1755385852846,-45.9,0.0002013,2]
[379725260,1755385852858,-480.0,0.00020131,2]
[379725261,1755385852868,-160.7608968,0.000206,2]
[379725262,1755385852877,-1648.36987849,0.00021774,2]
[379725263,1755385852888,-558.56,0.00021774,2]
[379725264,1755385852899,-549.41,0.00021774,2]
[379725265,1755385852908,-2621.34,0.00021774,2]
[379725266,1755385852919,-480.0,0.00021774,2]
[379725267,1755385852928,-480.0,0.00021774,2]
[379725268,1755385852937,-500.0,0.00021774,2]
[379725269,1755385852947,-480.0,0.00021774,2]
[379725270,1755385852956,-753.82,0.00021774,2]
[379725271,1755385852966,-480.0,0.00021774,2]
[379725272,1755385852975,-671.58,0.00021774,2]
[379725273,1755385852985,-480.0,0.00021774,2]
[379725274,1755385852995,-480.0,0.00021774,2]
[379725275,1755385853005,-938.46,0.00021774,2]
[379725276,1755385853016,-778.72,0.00021774,2]
[379725277,1755385853025,-814.12,0.00021774,2]
[379725278,1755385853035,-230.331741,0.00021774,2]
[379725279,1755385853046,-654.55,0.00021774,2]
[379725280,1755385853056,-480.0,0.00021774,2]
[379725281,1755385853067,-1106.0,0.00021775,2]
[379725282,1755385853076,-151.0,0.00021775,2]
[379725283,1755385853085,-923.72,0.00021775,2]
[379725284,1755385853095,-480.0,0.00021775,2]
[379725285,1755385853105,-480.0,0.00021775,2]
[379725286,1755385853115,-480.0,0.00021775,2]
[379725287,1755385853125,-1069.56,0.00021775,2]
[379725288,1755385853135,-55.38699159,0.00021775,2]
[379725289,1755385853147,-424.61300841,0.00021775,2]
[379725290,1755385853156,-483.02,0.00021775,2]
[379725291,1755385853166,-520.44,0.00021775,2]
[379725292,1755385853175,-709.55,0.00021775,2]
[379725293,1755385853184,-512.26,0.00021775,2]
[379725294,1755385853194,-1150.28,0.00021775,2]
[379725295,1755385853203,-151.0,0.00021775,2]
[379725296,1755385853212,-480.0,0.00021775,2]
[379725297,1755385853221,-702.82,0.00021775,2]
[379725298,1755385853231,-1331.81,0.00021775,2]
[379725299,1755385853240,-635.95,0.00021775,2]
[379725300,1755385853250,-931.96,0.00021775,2]
[379725301,1755385853259,-504.06,0.00021775,2]
[379725302,1755385853268,-545.46,0.00021775,2]
[379725303,1755385853277,-2449.06,0.00021775,2]
[379725304,1755385853287,-893.39,0.00021775,2]
[379725305,1755385853297,-480.0,0.00021775,2]
[379725306,1755385853306,-590.25,0.00021775,2]
[379725307,1755385853316,-870.59,0.00021775,2]
[379725308,1755385853325,-480.0,0.00021775,2]
[379725309,1755385853334,-480.0,0.00021775,2]
[379725310,1755385853377,-782.26,0.00021775,2]
[379725311,1755385853387,-620.8,0.00021775,2]
[379725312,1755385853397,-7785.62,0.00021775,2]
[379725313,1755385853407,-784.78,0.00021775,2]
[379725314,1755385853417,-492.76,0.00021775,2]
[379725315,1755385853426,-480.0,0.00021776,2]
[379725316,1755385853436,-499.41,0.00021776,2]
[379725317,1755385853445,-480.0,0.00021776,2]
[379725318,1755385853455,-557.62,0.00021776,2]
[379725319,1755385853465,-480.0,0.00021776,2]
[379725320,1755385853475,-480.0,0.00021776,2]
[379725321,1755385853485,-450.617997,0.00021776,2]
[379725322,1755385853495,-450.617997,0.00021776,2]
[379725323,1755385853505,-480.0,0.00021776,2]
[379725324,1755385853514,-151.0,0.00021776,2]
[379725325,1755385853524,-480.0,0.00021776,2]
[379725326,1755385853533,-480.0,0.00021776,2]
[379725327,1755385853542,-480.0,0.00021776,2]
[379725328,1755385853552,-531.38,0.00021776,2]
[379725329,1755385853561,-480.0,0.00021776,2]
[379725330,1755385853571,-480.0,0.00021776,2]
[379725331,1755385853581,-353.22715347,0.00021776,2]
[379725332,1755385853591,-171.887011,0.00021776,2]
[379725333,1755385853602,-171.887011,0.00021776,2]
[379725334,1755385853611,-659.75,0.00021776,2]
[379725335,1755385853620,-480.0,0.00021776,2]
[379725336,1755385853630,-151.0,0.00021776,2]
[379725337,1755385853639,-151.0,0.00021776,2]
[379725338,1755385853649,-1030.58,0.00021776,2]
[379725339,1755385853658,-151.0,0.00021776,2]
[379725340,1755385853667,-480.0,0.00021776,2]
[379725341,1755385853676,-480.0,0.00021776,2]
[379725342,1755385853686,-600.63041728,0.00021776,2]
[379725343,1755385853695,-4.17646221,0.00021776,2]
[379725344,1755385881887,564.12,0.00019964,2]
[379725346,1755385954169,370.34652922,0.00019473,2]
[379725348,1755385959322,500.0,0.00019177,2]
[379725349,1755385964522,556.94,0.00019967,2]
[379725350,1755386037981,282.91323644,0.00020033,2]
[379725351,1755386047197,549.85,0.00019966,2]
[379725352,1755386048562,92247.91128182,0.0002,2]
[379725353,1755386081566,179.78425889,0.00018203,2]
[379725354,1755386109367,10000.0,0.00027799,60]
[379725355,1755386137805,542.85,0.00019956,2]
[379725356,1755386173983,188.6088243,0.0002003,2]
[379725357,1755386222070,535.95,0.00019957,2]
[379725358,1755386255715,246.89768615,0.00019473,2]
[379725359,1755386305338,529.12,0.00019955,2]
[379725361,1755386328113,666.0,0.00019178,2]
[379725362,1755386349546,500.0,0.00019177,2]
[379725363,1755386369871,309.47,0.000201,10]
[379725364,1755386388201,522.39,0.00019955,2]
[379725365,1755386423300,269.045502,0.00013699,2]
[379725366,1755386471519,515.74,0.00019955,2]
[379725367,1755386557019,164.59845743,0.00019473,2]
[379725368,1755386563486,509.18,0.00019955,2]
[379725369,1755386657815,502.7,0.00019977,2]
[379725370,1755386741257,496.3,0.00019978,2]
[379725371,1755386757110,250.0,0.00019916,2]
[379725372,1755386797373,396.635821,0.00020028,2]
[379725373,1755386826898,489.98,0.00019979,2]
[379725374,1755386858203,150.0,0.000189,2]
[379725375,1755386912076,483.75,0.00019967,2]
[379725377,1755386995092,477.59,0.00019977,2]
[379725386,1755387032179,-1200.0,0.00020125,2]
[379725387,1755387032190,-300.0,0.00020126,2]
[379725388,1755387032199,-300.0,0.00020126,2]
[379725389,1755387032210,-300.0,0.00020126,2]
[379725390,1755387032220,-300.0,0.00020126,2]
[379725391,1755387032230,-390.66587096,0.00020127,2]
[379725392,1755387032240,-596.7,0.00020127,2]
[379725394,1755387032249,-480.0,0.00020127,2]
[379725395,1755387032259,-524.77,0.00020127,2]
[379725396,1755387032271,-1285.12,0.00020127,2]
[379725397,1755387032281,-1855.56,0.00020127,2]
[379725398,1755387032290,-69.48042051,0.00020127,2]
[379725399,1755387032301,-410.51957949,0.00020127,2]
[379725400,1755387032311,-480.0,0.00020127,2]
[379725401,1755387032320,-1309.22,0.00020127,2]
[379725402,1755387032329,-480.0,0.00020127,2]
[379725403,1755387032338,-480.0,0.00020127,2]
[379725404,1755387032347,-663.69,0.00020127,2]
[379725405,1755387032357,-1734.49,0.00020127,2]
[379725406,1755387032367,-480.0,0.00020127,2]
[379725407,1755387032376,-209.27107448,0.00020127,2]
[379725449,1755387038254,-387.50892552,0.00020127,2]
[379725450,1755387038264,-480.0,0.00020127,2]
[379725451,1755387038274,-484.5229493,0.00020127,2]
[379725522,1755387046048,-258.4270507,0.00020127,2]
[379725524,1755387046057,-480.0,0.00020127,2]
[379725525,1755387046067,-480.0,0.00020127,2]
[379725526,1755387046076,-307.74342932,0.00020127,2]
[379725527,1755387046096,-172.25657068,0.00020127,2]
[379725528,1755387046105,-217.1671854,0.00020127,2]
[379725529,1755387046212,-262.8328146,0.00020127,2]
[379725530,1755387046222,-480.0,0.00020127,2]
[379725531,1755387046232,-571.84,0.00020127,2]
[379725532,1755387046242,-480.0,0.00020128,2]
[379725533,1755387046253,-539.2099651,0.00020128,2]
[379725534,1755387046263,-480.0,0.00020128,2]
[379725535,1755387046273,-480.0,0.00020128,2]
[379725536,1755387046283,-45.66994367,0.00020128,2]
[379725537,1755387077538,471.51,0.00019956,2]
[379725538,1755387158791,465.51,0.00019958,2]
[379725539,1755387159489,150.0,0.000189,2]
[379725540,1755387188051,280.2,0.0002,2]
[379725545,1755387239812,459.58,0.00019955,2]
[379725546,1755387321235,453.74,0.00019959,2]
[379725547,1755387366545,415.92599363,0.00020028,2]
[379725548,1755387403280,498.68,0.00019955,2]
[379725549,1755387409894,1097.196196,0.00019128,2]
[379725550,1755387433094,151.0,0.000198,2]
[379725551,1755387433531,151.0,0.000187,2]
[379725552,1755387433849,151.0,0.000176,2]
[379725553,1755387455681,192421.40201889,0.00020028,2]
[379725554,1755387456388,-295.76916828,0.00020028,2]
[379725555,1755387485070,492.33,0.00019955,2]
[379725556,1755387567479,492.37,0.00019955,2]
[379725557,1755387646915,500.0,0.00019177,2]
[379725558,1755387649132,486.11,0.00019957,2]
[379725559,1755387674644,271.881165,0.00013699,2]
[379725561,1755387734140,479.92,0.00019956,2]
[379725562,1755387812500,175.0,0.0001918,2]
[379725563,1755387823644,473.81,0.00019955,2]
[379725564,1755387834716,377.21764858,0.00019928,2]
[379725565,1755387858897,502.6878051,0.00019928,2]
[379725566,1755387906201,467.78,0.00019955,2]
[379725567,1755387997193,461.83,0.00019955,2]
[379725568,1755388060636,597.41212347,0.00019927,2]
[379725569,1755388079617,455.95,0.00019954,2]
[379725570,1755388172054,450.15,0.00019955,2]
[379725595,1755388232324,-534.07,0.00020018,3]
[379725596,1755388232333,-534.07,0.00020018,3]
[379725597,1755388232343,-178.03,0.00020018,3]
[379725598,1755388232352,-88.05055818,0.00020018,3]
[379725602,1755388238241,-446.03944182,0.00020018,3]
[379725603,1755388238251,-300.0,0.00020024,2]
[379725604,1755388238261,-1200.0,0.00020024,2]
[379725605,1755388238270,-400.0,0.00020024,2]
[379725606,1755388238280,-480.0,0.00020024,2]
[379725607,1755388238289,-5831.50478042,0.00020025,2]
[379725608,1755388238397,-2898.82575333,0.00020025,2]
[379725610,1755388238406,-1200.0,0.00020025,2]